[Event "GrandPrix_29.05"]
[Site "Chess.com"]
[Date "2020.05.29"]
[Round "7"]
[White "fujiwara_hoga"]
[Black "Baron_von_Koenig"]
[Result "1-0"]
[WhiteElo "2136"]
[BlackElo "1997"]
[TimeControl "600+2"]
[EndTime "12:32:00 PDT"]
[Termination "fujiwara_hoga won by resignation"]

1. d4 {[%clk 0:10:01.9]} 1... Nc6 {[%clk 0:10:00.4]} 2. Nf3 {[%clk 0:09:55.7]}
2... d6 {[%clk 0:10:01]} 3. e4 {[%clk 0:09:37.3]} 3... Nf6 {[%clk 0:09:56.7]} 4.
Nc3 {[%clk 0:09:32.5]} 4... g6 {[%clk 0:09:56.2]} 5. Be2 {[%clk 0:09:30]} 5...
Bg7 {[%clk 0:09:55.1]} 6. O-O {[%clk 0:09:30.4]} 6... O-O {[%clk 0:09:55.3]} 7.
h3 {[%clk 0:09:30.3]} 7... e5 {[%clk 0:09:22.5]} 8. dxe5 {[%clk 0:09:15.5]} 8...
dxe5 {[%clk 0:09:22]} 9. Be3 {[%clk 0:09:10.5]} 9... h6 {[%clk 0:09:07.2]} 10.
Nd2 {[%clk 0:07:58.3]} 10... Nd4 {[%clk 0:08:47]} 11. Bc4 {[%clk 0:07:51.2]}
11... c6 {[%clk 0:08:38.8]} 12. a4 {[%clk 0:07:50]} 12... b6 {[%clk 0:08:12.4]}
13. b4 {[%clk 0:07:11.1]} 13... a6 {[%clk 0:07:36.9]} 14. Nb3 {[%clk 0:06:35.7]}
14... Nh5 {[%clk 0:07:26.8]} 15. Ne2 {[%clk 0:06:11.8]} 15... b5 {[%clk
0:07:23]} 16. axb5 {[%clk 0:05:58.1]} 16... cxb5 {[%clk 0:07:23.9]} 17. Bd5
{[%clk 0:05:56.1]} 17... Nxb3 {[%clk 0:07:06.6]} 18. cxb3 {[%clk 0:05:53.2]}
18... Be6 {[%clk 0:06:48.3]} 19. Bxa8 {[%clk 0:05:48.1]} 19... Qxa8 {[%clk
0:06:49]} 20. f3 {[%clk 0:05:25.6]} 20... Rd8 {[%clk 0:06:49.3]} 21. Qc2 {[%clk
0:05:21.1]} 21... f5 {[%clk 0:06:49.8]} 22. Rfd1 {[%clk 0:04:36.8]} 22... Rc8
{[%clk 0:06:49.3]} 23. Qd3 {[%clk 0:04:34.7]} 23... Bf8 {[%clk 0:06:21.9]} 24.
Bc5 {[%clk 0:04:18.9]} 24... fxe4 {[%clk 0:06:04.3]} 25. fxe4 {[%clk 0:04:03.2]}
25... Nf6 {[%clk 0:05:50.6]} 26. Bxf8 {[%clk 0:04:01.1]} 26... Rxf8 {[%clk
0:05:51]} 27. Qd6 {[%clk 0:03:28.9]} 27... Bxb3 {[%clk 0:05:16.7]} 28. Rf1
{[%clk 0:03:25.8]} 28... Qa7+ {[%clk 0:04:17.7]} 29. Kh2 {[%clk 0:03:23]} 29...
Qg7 {[%clk 0:04:08]} 30. Ng3 {[%clk 0:03:06.2]} 30... Ba4 {[%clk 0:02:33.1]} 31.
Rf3 {[%clk 0:02:51.4]} 31... Nh7 {[%clk 0:02:21.3]} 32. Rxf8+ {[%clk 0:02:34.7]}
32... Nxf8 {[%clk 0:02:23.2]} 33. Rc1 {[%clk 0:02:31.6]} 33... Bb3 {[%clk
0:02:18]} 34. Rc7 {[%clk 0:02:27.2]} 34... Bf7 {[%clk 0:02:19.4]} 35. Qxa6
{[%clk 0:02:17.3]} 35... h5 {[%clk 0:02:20.3]} 36. Qxb5 {[%clk 0:02:02.7]} 36...
h4 {[%clk 0:02:08.8]} 37. Nf1 {[%clk 0:02:00.7]} 37... Qf6 {[%clk 0:02:08]} 38.
Rc3 {[%clk 0:01:35.5]} 38... Qf4+ {[%clk 0:01:53.2]} 39. Kg1 {[%clk 0:01:30.8]}
39... Qxe4 {[%clk 0:01:53.2]} 40. Re3 {[%clk 0:01:25.3]} 40... Qd4 {[%clk
0:01:47]} 41. Qc5 {[%clk 0:01:24.3]} 41... Qb2 {[%clk 0:01:30.1]} 42. Rxe5
{[%clk 0:01:07.2]} 42... Nd7 {[%clk 0:01:08.7]} 43. Qc8+ {[%clk 0:01:06.3]}
43... Kg7 {[%clk 0:01:08.7]} 44. Re3 {[%clk 0:01:01.2]} 44... Qd4 {[%clk
0:01:05.7]} 45. Qc3 {[%clk 0:00:59.7]} 45... Qxc3 {[%clk 0:01:05.7]} 46. Rxc3
{[%clk 0:01:00.9]} 46... Kf6 {[%clk 0:01:07.2]} 47. Ne3 {[%clk 0:00:57.5]} 47...
Ke5 {[%clk 0:01:06.5]} 48. Kf2 {[%clk 0:00:57.9]} 48... Nf6 {[%clk 0:01:03.3]}
49. Rc5+ {[%clk 0:00:56.1]} 49... Kd6 {[%clk 0:01:02.9]} 50. Ra5 {[%clk
0:00:54.2]} 50... Ne4+ {[%clk 0:01:00.9]} 51. Kf3 {[%clk 0:00:53.4]} 51... Nd2+
{[%clk 0:00:56.4]} 52. Kg4 {[%clk 0:00:51.1]} 1-0

[Event "GrandPrix_29.05"]
[Site "Chess.com"]
[Date "2020.05.29"]
[Round "7"]
[White "Promacherr"]
[Black "VolodymyrMolyboha"]
[Result "0-1"]
[WhiteElo "2171"]
[BlackElo "2302"]
[TimeControl "600+2"]
[EndTime "12:32:04 PDT"]
[Termination "VolodymyrMolyboha won by resignation"]

1. d4 {[%clk 0:10:01.9]} 1... g6 {[%clk 0:10:00.3]} 2. e4 {[%clk 0:10:02.7]}
2... Bg7 {[%clk 0:10:01.5]} 3. Nc3 {[%clk 0:10:04.3]} 3... d6 {[%clk 0:10:02.7]}
4. f4 {[%clk 0:10:05.5]} 4... c6 {[%clk 0:10:03.3]} 5. Nf3 {[%clk 0:10:06.5]}
5... Bg4 {[%clk 0:10:03.6]} 6. Be3 {[%clk 0:10:06.5]} 6... d5 {[%clk 0:10:04.5]}
7. exd5 {[%clk 0:10:00.3]} 7... cxd5 {[%clk 0:10:05]} 8. Bb5+ {[%clk 0:10:01.2]}
8... Nc6 {[%clk 0:10:05.6]} 9. h3 {[%clk 0:10:00.7]} 9... Bxf3 {[%clk 0:10:06]}
10. Qxf3 {[%clk 0:10:02.6]} 10... e6 {[%clk 0:10:07]} 11. O-O {[%clk 0:10:00]}
11... Ne7 {[%clk 0:10:00.6]} 12. Ne2 {[%clk 0:09:17.7]} 12... O-O {[%clk
0:09:56.6]} 13. c3 {[%clk 0:09:15.6]} 13... Nf5 {[%clk 0:09:52.4]} 14. Bf2
{[%clk 0:09:15.9]} 14... Nd6 {[%clk 0:09:53]} 15. Bd3 {[%clk 0:09:16]} 15... f5
{[%clk 0:09:24.4]} 16. Rfe1 {[%clk 0:09:12.9]} 16... Ne4 {[%clk 0:09:15]} 17.
Be3 {[%clk 0:09:10.8]} 17... Nf6 {[%clk 0:08:55.9]} 18. g4 {[%clk 0:08:51.1]}
18... Rc8 {[%clk 0:08:36.1]} 19. g5 {[%clk 0:08:51]} 19... Ne4 {[%clk
0:08:36.5]} 20. h4 {[%clk 0:08:51.6]} 20... Na5 {[%clk 0:08:26.8]} 21. h5 {[%clk
0:08:50.7]} 21... Rf7 {[%clk 0:08:27.5]} 22. Kg2 {[%clk 0:08:50.6]} 22... Nc4
{[%clk 0:08:24.3]} 23. Bc1 {[%clk 0:08:51.4]} 23... Kf8 {[%clk 0:07:21.8]} 24.
Rh1 {[%clk 0:08:50.8]} 24... Ke7 {[%clk 0:07:18.5]} 25. hxg6 {[%clk 0:08:48]}
25... hxg6 {[%clk 0:07:19.1]} 26. Rh7 {[%clk 0:08:49.2]} 26... Qg8 {[%clk
0:07:06.4]} 27. Rh3 {[%clk 0:08:43.9]} 27... Kd7 {[%clk 0:07:04.7]} 28. b3
{[%clk 0:08:32.8]} 28... Ncd6 {[%clk 0:07:03.6]} 29. c4 {[%clk 0:08:29.7]} 29...
Qd8 {[%clk 0:06:18.4]} 30. c5 {[%clk 0:08:27.6]} 30... Ne8 {[%clk 0:06:11.3]}
31. Rh7 {[%clk 0:07:58.4]} 31... Kc7 {[%clk 0:06:04.1]} 32. b4 {[%clk
0:07:52.3]} 32... Kb8 {[%clk 0:06:04.7]} 33. Be3 {[%clk 0:07:46.9]} 33... Qd7
{[%clk 0:05:59]} 34. a4 {[%clk 0:07:34.2]} 34... Nc7 {[%clk 0:05:50.3]} 35. Ra3
{[%clk 0:07:24.2]} 35... Rh8 {[%clk 0:05:48.8]} 36. Rxh8+ {[%clk 0:07:24.7]}
36... Bxh8 {[%clk 0:05:49.8]} 37. b5 {[%clk 0:07:25.3]} 37... Rh7 {[%clk
0:05:42.1]} 38. Rb3 {[%clk 0:07:18.2]} 38... Qd8 {[%clk 0:04:50.5]} 39. a5
{[%clk 0:07:06.8]} 39... Ne8 {[%clk 0:04:48.5]} 40. b6 {[%clk 0:06:54.7]} 40...
a6 {[%clk 0:04:44.5]} 41. c6 {[%clk 0:06:49.4]} 41... N8d6 {[%clk 0:04:44]} 42.
c7+ {[%clk 0:06:49.5]} 42... Rxc7 {[%clk 0:04:44.5]} 43. bxc7+ {[%clk
0:06:51.4]} 43... Qxc7 {[%clk 0:04:45.8]} 44. Qh3 {[%clk 0:06:47.8]} 44... Bg7
{[%clk 0:04:45.7]} 45. Qh7 {[%clk 0:06:48.3]} 45... Qf7 {[%clk 0:04:44.5]} 46.
Bxa6 {[%clk 0:06:40.1]} 46... Ka7 {[%clk 0:04:45.1]} 47. Bd3 {[%clk 0:06:39.7]}
47... Nc4 {[%clk 0:04:25.6]} 48. Bg1 {[%clk 0:06:27]} 48... Ned6 {[%clk
0:04:17.2]} 49. Nc3 {[%clk 0:06:21.8]} 49... Nd2 {[%clk 0:04:08.3]} 50. Nb5+
{[%clk 0:06:14.3]} 50... Nxb5 {[%clk 0:04:09.2]} 51. Rxb5 {[%clk 0:06:16.2]}
51... Ne4 {[%clk 0:04:09.5]} 52. Be3 {[%clk 0:05:31.9]} 52... Nc3 {[%clk
0:04:03.8]} 53. Rb3 {[%clk 0:05:30.1]} 53... Ne4 {[%clk 0:04:02.4]} 54. Qh1
{[%clk 0:05:26.4]} 54... Nd6 {[%clk 0:03:52.9]} 55. Qb1 {[%clk 0:05:24.6]} 55...
Qc7 {[%clk 0:03:48.1]} 56. Qc1 {[%clk 0:05:21.4]} 56... Nc4 {[%clk 0:03:46.6]}
57. Rc3 {[%clk 0:05:16.7]} 57... Nxe3+ {[%clk 0:03:45.3]} 58. Kf3 {[%clk
0:05:09.4]} 58... Nc4 {[%clk 0:03:40.2]} 59. Bxc4 {[%clk 0:05:10.3]} 59... dxc4
{[%clk 0:03:35.5]} 60. Rxc4 {[%clk 0:05:10.4]} 60... Qd6 {[%clk 0:03:36.6]} 61.
Kg3 {[%clk 0:04:43.7]} 61... Bxd4 {[%clk 0:03:28.9]} 62. Qd2 {[%clk 0:03:51.9]}
62... e5 {[%clk 0:03:26.1]} 63. Qb4 {[%clk 0:03:33.6]} 63... Qd5 {[%clk
0:03:06.3]} 64. Rc7 {[%clk 0:01:05.4]} 64... exf4+ {[%clk 0:02:59.7]} 65. Kh2
{[%clk 0:01:02.5]} 65... f3 {[%clk 0:02:38.5]} 66. Qc4 {[%clk 0:00:38.2]} 66...
Qe4 {[%clk 0:02:18.3]} 0-1

[Event "GrandPrix_29.05"]
[Site "Chess.com"]
[Date "2020.05.29"]
[Round "7"]
[White "gliglu"]
[Black "Durarbayli"]
[Result "0-1"]
[WhiteElo "2338"]
[BlackElo "2566"]
[TimeControl "600+2"]
[EndTime "12:32:09 PDT"]
[Termination "Durarbayli won on time"]

1. d4 {[%clk 0:10:01.9]} 1... Nf6 {[%clk 0:10:00.2]} 2. c4 {[%clk 0:10:02.2]}
2... e6 {[%clk 0:10:01.6]} 3. Nf3 {[%clk 0:10:02.1]} 3... b6 {[%clk 0:10:02.9]}
4. g3 {[%clk 0:10:01.5]} 4... Bb7 {[%clk 0:10:04.2]} 5. Bg2 {[%clk 0:10:02.4]}
5... Bb4+ {[%clk 0:10:05.1]} 6. Nbd2 {[%clk 0:10:02.8]} 6... O-O {[%clk
0:10:04.1]} 7. O-O {[%clk 0:10:03.3]} 7... Re8 {[%clk 0:09:48.6]} 8. a3 {[%clk
0:10:02]} 8... Bf8 {[%clk 0:09:47.6]} 9. b4 {[%clk 0:10:01.8]} 9... a5 {[%clk
0:09:05.6]} 10. b5 {[%clk 0:10:00.1]} 10... d6 {[%clk 0:08:54.7]} 11. Bb2 {[%clk
0:09:59.3]} 11... Nbd7 {[%clk 0:08:53.3]} 12. Qc2 {[%clk 0:09:56.6]} 12... g6
{[%clk 0:08:40.8]} 13. e4 {[%clk 0:09:48.8]} 13... e5 {[%clk 0:08:38]} 14. Rfd1
{[%clk 0:09:37.6]} 14... exd4 {[%clk 0:08:18.7]} 15. Nxd4 {[%clk 0:09:37.2]}
15... Nc5 {[%clk 0:08:17.4]} 16. Re1 {[%clk 0:09:25.2]} 16... Bg7 {[%clk
0:07:53.1]} 17. Rad1 {[%clk 0:09:24.1]} 17... Qe7 {[%clk 0:07:50.5]} 18. e5
{[%clk 0:08:45]} 18... dxe5 {[%clk 0:06:47.6]} 19. Nc6 {[%clk 0:08:43.1]} 19...
Qf8 {[%clk 0:06:21.5]} 20. Bxe5 {[%clk 0:08:30.7]} 20... Rac8 {[%clk 0:05:32.7]}
21. Nb3 {[%clk 0:07:46.2]} 21... Nxb3 {[%clk 0:04:29.5]} 22. Qxb3 {[%clk
0:07:46.4]} 22... Bxc6 {[%clk 0:04:24.5]} 23. Bxc6 {[%clk 0:07:38.8]} 23... Re6
{[%clk 0:04:21.3]} 24. Bf4 {[%clk 0:06:42.2]} 24... Qe7 {[%clk 0:03:49.9]} 25.
Rxe6 {[%clk 0:05:58.8]} 25... Qxe6 {[%clk 0:03:51.8]} 26. Qd3 {[%clk 0:05:59.4]}
26... Bf8 {[%clk 0:03:32.1]} 27. Bg5 {[%clk 0:05:31.1]} 27... Bd6 {[%clk
0:02:49.2]} 28. Qf3 {[%clk 0:05:17.8]} 28... Kg7 {[%clk 0:02:43.2]} 29. Rd3
{[%clk 0:04:49.9]} 29... Ng4 {[%clk 0:01:49.2]} 30. Bd5 {[%clk 0:03:31.8]} 30...
Ne5 {[%clk 0:01:47.5]} 31. Qe4 {[%clk 0:03:05.2]} 31... Qh3 {[%clk 0:01:38.7]}
32. Rd4 {[%clk 0:01:55.2]} 32... Re8 {[%clk 0:01:32.4]} 33. Be3 {[%clk
0:01:28.8]} 33... f5 {[%clk 0:01:28.1]} 34. Qg2 {[%clk 0:01:11.2]} 34... Qxg2+
{[%clk 0:01:26.7]} 35. Kxg2 {[%clk 0:00:46.9]} 35... Bxa3 {[%clk 0:01:24.7]} 36.
Rd1 {[%clk 0:00:47]} 36... Bd6 {[%clk 0:01:03.5]} 37. h3 {[%clk 0:00:32.7]}
37... h5 {[%clk 0:01:00.7]} 38. Bd4 {[%clk 0:00:23.7]} 38... Kf8 {[%clk
0:01:01.3]} 39. f4 {[%clk 0:00:14.4]} 39... Nd7 {[%clk 0:00:57]} 40. Bc6 {[%clk
0:00:13]} 40... Re7 {[%clk 0:00:55.7]} 41. Kf3 {[%clk 0:00:09.8]} 41... Nc5
{[%clk 0:00:49.2]} 42. Bf6 {[%clk 0:00:09.2]} 42... Re6 {[%clk 0:00:47.4]} 0-1

[Event "GrandPrix_29.05"]
[Site "Chess.com"]
[Date "2020.05.29"]
[Round "7"]
[White "Alex_Krayz"]
[Black "redblizzard"]
[Result "1-0"]
[WhiteElo "2148"]
[BlackElo "1912"]
[TimeControl "600+2"]
[EndTime "12:32:09 PDT"]
[Termination "Alex_Krayz won by checkmate"]

1. e4 {[%clk 0:10:01.9]} 1... e5 {[%clk 0:09:50.6]} 2. Nf3 {[%clk 0:10:01.5]}
2... Nc6 {[%clk 0:09:43.9]} 3. Bb5 {[%clk 0:10:00.7]} 3... Nf6 {[%clk
0:09:41.5]} 4. Qe2 {[%clk 0:10:00.2]} 4... Bc5 {[%clk 0:09:40.6]} 5. c3 {[%clk
0:09:59.5]} 5... d6 {[%clk 0:09:33.1]} 6. O-O {[%clk 0:09:58]} 6... Bd7 {[%clk
0:09:04.6]} 7. Rd1 {[%clk 0:09:50]} 7... O-O {[%clk 0:08:39.9]} 8. d4 {[%clk
0:09:38.2]} 8... Bb6 {[%clk 0:08:02.4]} 9. dxe5 {[%clk 0:09:18.4]} 9... Ng4
{[%clk 0:07:22.9]} 10. Be3 {[%clk 0:08:51.6]} 10... Nxe3 {[%clk 0:07:12.9]} 11.
fxe3 {[%clk 0:08:50.1]} 11... Re8 {[%clk 0:06:29.6]} 12. Bxc6 {[%clk 0:08:13.5]}
12... Bxc6 {[%clk 0:06:20.3]} 13. Nbd2 {[%clk 0:08:06.5]} 13... dxe5 {[%clk
0:05:58.5]} 14. b4 {[%clk 0:07:37.6]} 14... a6 {[%clk 0:05:28.5]} 15. a4 {[%clk
0:07:36.9]} 15... Qe7 {[%clk 0:04:32.9]} 16. b5 {[%clk 0:07:27.2]} 16... axb5
{[%clk 0:04:34.8]} 17. axb5 {[%clk 0:07:27.2]} 17... Rxa1 {[%clk 0:04:36.7]} 18.
Rxa1 {[%clk 0:07:25.6]} 18... Bd7 {[%clk 0:04:37.9]} 19. Nb3 {[%clk 0:06:36.6]}
19... Be6 {[%clk 0:04:22]} 20. Rb1 {[%clk 0:04:59.7]} 20... Bxb3 {[%clk
0:02:47.9]} 21. Rxb3 {[%clk 0:04:57.1]} 21... Qc5 {[%clk 0:02:46.6]} 22. Kf2
{[%clk 0:04:49.9]} 22... Ra8 {[%clk 0:02:30.4]} 23. c4 {[%clk 0:04:40.5]} 23...
h6 {[%clk 0:02:14.7]} 24. Rd3 {[%clk 0:04:22.8]} 24... f6 {[%clk 0:02:02.7]} 25.
Nd2 {[%clk 0:03:46.3]} 25... Ra3 {[%clk 0:01:48.2]} 26. Rxa3 {[%clk 0:03:26.5]}
26... Qxa3 {[%clk 0:01:50.1]} 27. Nf1 {[%clk 0:03:13.7]} 27... Qc3 {[%clk
0:01:21.5]} 28. h4 {[%clk 0:03:12.3]} 28... h5 {[%clk 0:00:54.9]} 29. Qxh5
{[%clk 0:02:39.9]} 29... Qxc4 {[%clk 0:00:37.6]} 30. Qg6 {[%clk 0:02:01.6]}
30... Qf7 {[%clk 0:00:29.9]} 31. Qg4 {[%clk 0:01:58]} 31... Kh7 {[%clk
0:00:22.5]} 32. h5 {[%clk 0:01:55.8]} 32... Qa2+ {[%clk 0:00:21.1]} 33. Kf3
{[%clk 0:01:50.4]} 33... Qb3 {[%clk 0:00:17.5]} 34. Qg6+ {[%clk 0:01:48.2]}
34... Kh8 {[%clk 0:00:17.5]} 35. h6 {[%clk 0:01:44.7]} 35... Qg8 {[%clk
0:00:13.4]} 36. Ng3 {[%clk 0:01:40.8]} 36... Qh7 {[%clk 0:00:08.8]} 37. Qe8+
{[%clk 0:01:36.4]} 37... Qg8 {[%clk 0:00:09.8]} 38. hxg7+ {[%clk 0:01:37]} 38...
Kxg7 {[%clk 0:00:08.5]} 39. Nf5+ {[%clk 0:01:17.1]} 39... Kh8 {[%clk 0:00:09.3]}
40. Qe7 {[%clk 0:01:08.1]} 40... Qg6 {[%clk 0:00:08.5]} 41. g4 {[%clk
0:01:04.9]} 41... Kg8 {[%clk 0:00:05]} 42. Qe6+ {[%clk 0:01:00.5]} 42... Kh7
{[%clk 0:00:05.7]} 43. Ne7 {[%clk 0:00:50.5]} 43... Qh6 {[%clk 0:00:06.1]} 44.
Qg8# {[%clk 0:00:43.9]} 1-0

[Event "GrandPrix_29.05"]
[Site "Chess.com"]
[Date "2020.05.29"]
[Round "7"]
[White "Yuri202062"]
[Black "ZefirKa"]
[Result "1-0"]
[WhiteElo "1995"]
[BlackElo "2056"]
[TimeControl "600+2"]
[EndTime "12:32:11 PDT"]
[Termination "Yuri202062 won by resignation"]

1. d4 {[%clk 0:10:01.9]} 1... d5 {[%clk 0:10:00.8]} 2. c4 {[%clk 0:10:02.2]}
2... dxc4 {[%clk 0:10:02.7]} 3. e3 {[%clk 0:10:01.6]} 3... Nf6 {[%clk
0:09:57.6]} 4. Bxc4 {[%clk 0:10:02.2]} 4... a6 {[%clk 0:09:58.2]} 5. Nf3 {[%clk
0:10:01.6]} 5... e6 {[%clk 0:09:59.2]} 6. Qe2 {[%clk 0:10:01.4]} 6... c5 {[%clk
0:09:53.1]} 7. dxc5 {[%clk 0:10:01.8]} 7... Bxc5 {[%clk 0:09:53.1]} 8. O-O
{[%clk 0:10:02.6]} 8... Nc6 {[%clk 0:09:39]} 9. e4 {[%clk 0:09:54.6]} 9... Nd4
{[%clk 0:09:38.4]} 10. Nxd4 {[%clk 0:09:52.2]} 10... Qxd4 {[%clk 0:09:40.3]} 11.
Be3 {[%clk 0:09:31.5]} 11... Qe5 {[%clk 0:09:39.3]} 12. Bxc5 {[%clk 0:09:27.8]}
12... Qxc5 {[%clk 0:09:40]} 13. Nd2 {[%clk 0:08:46.7]} 13... b5 {[%clk
0:09:34.4]} 14. Bd3 {[%clk 0:08:45.2]} 14... e5 {[%clk 0:08:54.9]} 15. a4 {[%clk
0:08:41.2]} 15... Bg4 {[%clk 0:08:41]} 16. Qe1 {[%clk 0:07:58.5]} 16... O-O
{[%clk 0:08:41.6]} 17. h3 {[%clk 0:07:54.7]} 17... Bd7 {[%clk 0:08:24.6]} 18.
axb5 {[%clk 0:06:33.9]} 18... axb5 {[%clk 0:08:25.6]} 19. Qe2 {[%clk 0:06:28.5]}
19... Rfc8 {[%clk 0:07:19.5]} 20. Rfd1 {[%clk 0:05:37.8]} 20... Ra4 {[%clk
0:06:23]} 21. Nf3 {[%clk 0:05:24.8]} 21... Nh5 {[%clk 0:05:32]} 22. Qd2 {[%clk
0:04:53.9]} 22... Rxa1 {[%clk 0:05:15.6]} 23. Rxa1 {[%clk 0:04:53.8]} 23... Nf4
{[%clk 0:05:16.1]} 24. Bf1 {[%clk 0:04:42]} 24... Be6 {[%clk 0:05:03]} 25. b4
{[%clk 0:04:40.2]} 25... Qc6 {[%clk 0:04:38.4]} 26. Nxe5 {[%clk 0:04:12.2]}
26... Qxe4 {[%clk 0:04:38.7]} 27. Re1 {[%clk 0:04:08.6]} 27... Qf5 {[%clk
0:04:18]} 28. Kh2 {[%clk 0:02:43.7]} 28... f6 {[%clk 0:01:04.6]} 29. g4 {[%clk
0:02:11.4]} 29... Qg5 {[%clk 0:00:50.7]} 30. Nf3 {[%clk 0:02:08.3]} 30... Qh6
{[%clk 0:00:51]} 31. Re4 {[%clk 0:01:47.4]} 31... g5 {[%clk 0:00:43.8]} 32. Rxe6
{[%clk 0:01:45.2]} 32... Nxe6 {[%clk 0:00:44.2]} 33. Qd7 {[%clk 0:01:45.8]}
33... Qf8 {[%clk 0:00:31]} 34. Qxe6+ {[%clk 0:01:45.1]} 34... Kg7 {[%clk
0:00:30.5]} 35. Bxb5 {[%clk 0:01:38.2]} 35... Rc2 {[%clk 0:00:27.8]} 36. Kg2
{[%clk 0:00:35.8]} 36... Qxb4 {[%clk 0:00:28.6]} 37. Qd7+ {[%clk 0:00:32.7]}
37... Kf8 {[%clk 0:00:23]} 38. Nd4 {[%clk 0:00:22.2]} 38... Rxf2+ {[%clk
0:00:16.9]} 39. Kxf2 {[%clk 0:00:21.8]} 39... Qd2+ {[%clk 0:00:18.5]} 40. Ne2
{[%clk 0:00:20]} 1-0

[Event "GrandPrix_29.05"]
[Site "Chess.com"]
[Date "2020.05.29"]
[Round "7"]
[White "DenLaz"]
[Black "Spartakus1975"]
[Result "1-0"]
[WhiteElo "2808"]
[BlackElo "2581"]
[TimeControl "600+2"]
[EndTime "12:32:15 PDT"]
[Termination "DenLaz won by resignation"]

1. d4 {[%clk 0:10:00.3]} 1... d5 {[%clk 0:09:56.5]} 2. c4 {[%clk 0:10:00.8]}
2... c6 {[%clk 0:09:56.4]} 3. Nf3 {[%clk 0:10:01]} 3... Nf6 {[%clk 0:09:56.6]}
4. Qc2 {[%clk 0:10:02.4]} 4... g6 {[%clk 0:09:35]} 5. e3 {[%clk 0:10:02.4]} 5...
Bf5 {[%clk 0:09:26.9]} 6. Bd3 {[%clk 0:10:02.2]} 6... Bxd3 {[%clk 0:09:26.9]} 7.
Qxd3 {[%clk 0:10:04.1]} 7... e6 {[%clk 0:09:20.2]} 8. O-O {[%clk 0:10:03.5]}
8... Nbd7 {[%clk 0:09:18.3]} 9. Nc3 {[%clk 0:10:03.1]} 9... Bg7 {[%clk
0:09:17.9]} 10. b3 {[%clk 0:10:02.8]} 10... O-O {[%clk 0:09:17.8]} 11. Bb2
{[%clk 0:10:02]} 11... Re8 {[%clk 0:09:05.4]} 12. Rfd1 {[%clk 0:09:57.4]} 12...
a6 {[%clk 0:09:00.4]} 13. a4 {[%clk 0:09:50.9]} 13... Qb6 {[%clk 0:08:52.9]} 14.
Qc2 {[%clk 0:09:48.1]} 14... Rad8 {[%clk 0:08:42.5]} 15. Rac1 {[%clk 0:09:04.3]}
15... h6 {[%clk 0:08:24.5]} 16. Ne2 {[%clk 0:09:03.8]} 16... Ne4 {[%clk
0:08:22.3]} 17. Nf4 {[%clk 0:09:01.3]} 17... g5 {[%clk 0:07:52.4]} 18. Nd3
{[%clk 0:08:59.8]} 18... Qc7 {[%clk 0:07:43.3]} 19. b4 {[%clk 0:08:46]} 19...
dxc4 {[%clk 0:07:24.3]} 20. Qxc4 {[%clk 0:08:45.2]} 20... Nb6 {[%clk 0:07:24]}
21. Qc2 {[%clk 0:08:36.7]} 21... Qe7 {[%clk 0:07:16.5]} 22. Nfe5 {[%clk
0:08:18]} 22... Nd5 {[%clk 0:07:10.6]} 23. Ba3 {[%clk 0:08:11.8]} 23... f6
{[%clk 0:06:35.4]} 24. Nc4 {[%clk 0:08:08.3]} 24... Qf7 {[%clk 0:06:09.4]} 25.
Re1 {[%clk 0:07:23.7]} 25... g4 {[%clk 0:05:58.6]} 26. Qe2 {[%clk 0:07:04.9]}
26... Qg6 {[%clk 0:05:31.3]} 27. Kh1 {[%clk 0:06:48.2]} 27... Kh8 {[%clk
0:04:49.7]} 28. f3 {[%clk 0:06:42.8]} 28... Nec3 {[%clk 0:04:38.2]} 29. Qd2
{[%clk 0:06:24.6]} 29... Nxa4 {[%clk 0:03:56.4]} 30. e4 {[%clk 0:06:23.3]} 30...
Ndb6 {[%clk 0:03:51]} 31. Na5 {[%clk 0:06:16.9]} 31... Rxd4 {[%clk 0:03:38.6]}
32. Qe3 {[%clk 0:05:49.7]} 32... e5 {[%clk 0:03:19]} 33. fxg4 {[%clk 0:05:40]}
33... Qxg4 {[%clk 0:03:11.4]} 34. Nf2 {[%clk 0:05:39.3]} 34... Qf4 {[%clk
0:02:49.9]} 35. Nxb7 {[%clk 0:05:23.2]} 35... Qxe3 {[%clk 0:02:41.6]} 36. Rxe3
{[%clk 0:05:25.1]} 36... Nc4 {[%clk 0:02:18.4]} 37. Rg3 {[%clk 0:04:59.8]} 37...
Rb8 {[%clk 0:01:59.9]} 38. Na5 {[%clk 0:04:57.3]} 38... Nxa5 {[%clk 0:01:57.3]}
39. bxa5 {[%clk 0:04:59.2]} 39... c5 {[%clk 0:01:51.7]} 40. h4 {[%clk
0:04:32.4]} 40... c4 {[%clk 0:01:49.4]} 41. Rc2 {[%clk 0:03:54.5]} 41... c3
{[%clk 0:01:44.6]} 42. Bc1 {[%clk 0:03:54.7]} 42... Rdb4 {[%clk 0:01:17.3]} 43.
Kh2 {[%clk 0:03:48.4]} 43... Rb2 {[%clk 0:01:14.6]} 44. Rgxc3 {[%clk 0:03:41.4]}
44... Nxc3 {[%clk 0:01:13.6]} 45. Bxb2 {[%clk 0:03:32]} 45... Na4 {[%clk
0:01:13]} 46. Bc1 {[%clk 0:03:26.5]} 46... Rb5 {[%clk 0:01:05.6]} 47. Bd2 {[%clk
0:03:26.8]} 47... Rc5 {[%clk 0:01:02.5]} 48. Rxc5 {[%clk 0:03:10.6]} 48... Nxc5
{[%clk 0:01:02.9]} 49. Kg3 {[%clk 0:03:12]} 49... Kg8 {[%clk 0:00:59.9]} 50. h5
{[%clk 0:03:10.6]} 50... Kf7 {[%clk 0:00:57.1]} 51. Kf3 {[%clk 0:03:11.4]} 51...
Nb3 {[%clk 0:00:53.9]} 52. Bc3 {[%clk 0:03:11.3]} 52... Ke6 {[%clk 0:00:52.1]}
53. Ke3 {[%clk 0:03:05]} 53... Bf8 {[%clk 0:00:50]} 54. Kd3 {[%clk 0:03:04.3]}
54... f5 {[%clk 0:00:36.9]} 55. exf5+ {[%clk 0:03:02.5]} 55... Kxf5 {[%clk
0:00:37.6]} 56. Kc4 {[%clk 0:03:00.2]} 56... Nc1 {[%clk 0:00:32.2]} 57. Bd2
{[%clk 0:02:56.4]} 57... Ne2 {[%clk 0:00:31.5]} 58. g4+ {[%clk 0:02:56.9]} 58...
Ke6 {[%clk 0:00:32.5]} 59. Ne4 {[%clk 0:02:52.8]} 59... Nf4 {[%clk 0:00:31.1]}
60. Nc5+ {[%clk 0:02:43.2]} 60... Bxc5 {[%clk 0:00:23.3]} 61. Kxc5 {[%clk
0:02:45.1]} 61... Nd3+ {[%clk 0:00:24.2]} 62. Kb6 {[%clk 0:02:46]} 62... Nf2
{[%clk 0:00:23.9]} 63. Kxa6 {[%clk 0:02:45.7]} 63... Nxg4 {[%clk 0:00:23.3]} 64.
Kb7 {[%clk 0:02:46.8]} 64... Nf6 {[%clk 0:00:17.7]} 65. a6 {[%clk 0:02:47.7]}
65... Ne4 {[%clk 0:00:09.2]} 66. a7 {[%clk 0:02:47.3]} 66... Nc5+ {[%clk
0:00:08.7]} 67. Kc6 {[%clk 0:02:43.2]} 67... Ne4 {[%clk 0:00:05.3]} 68. a8=Q
{[%clk 0:02:43.2]} 68... Nxd2 {[%clk 0:00:06.3]} 69. Qa2+ {[%clk 0:02:41.6]} 1-0